[Event "Late-Titled-Tuesday-Blitz-May-14-2024"]
[Site "Chess.com"]
[Date "2024.05.14"]
[Round "11"]
[White "zajka-molotok"]
[Black "NajdorfPlayerc5"]
[Result "1-0"]
[WhiteElo "2557"]
[BlackElo "2412"]
[TimeControl "180+1"]
[EndTime "16:03:45 PDT"]
[Termination "zajka-molotok won on time"]

1. b3 {[%clk 0:03:00.9]} 1... e5 {[%clk 0:02:58.8]} 2. Bb2 {[%clk 0:03:01.8]}
2... Nc6 {[%clk 0:02:58.7]} 3. e3 {[%clk 0:03:01.8]} 3... Nf6 {[%clk 0:02:58.3]}
4. Nf3 {[%clk 0:03:02.3]} 4... Bd6 {[%clk 0:02:58.5]} 5. d4 {[%clk 0:03:02.1]}
5... exd4 {[%clk 0:02:52.7]} 6. Nxd4 {[%clk 0:03:03]} 6... Nxd4 {[%clk
0:02:48.5]} 7. Qxd4 {[%clk 0:03:03.9]} 7... O-O {[%clk 0:02:39.4]} 8. Nc3 {[%clk
0:03:03.1]} 8... Re8 {[%clk 0:02:39.4]} 9. O-O-O {[%clk 0:03:00.7]} 9... Be5
{[%clk 0:02:32.9]} 10. Qd3 {[%clk 0:02:57.6]} 10... d6 {[%clk 0:02:21.2]} 11. f4
{[%clk 0:02:57.1]} 11... Bxc3 {[%clk 0:02:21]} 12. Qxc3 {[%clk 0:02:55.8]} 12...
Bg4 {[%clk 0:02:09.6]} 13. Rd5 {[%clk 0:02:55.2]} 13... Qe7 {[%clk 0:02:03.9]}
14. Rg5 {[%clk 0:02:52.3]} 14... Kh8 {[%clk 0:01:27.7]} 15. Rxg4 {[%clk
0:02:48.7]} 15... Rg8 {[%clk 0:00:58.5]} 16. Rg5 {[%clk 0:02:33.8]} 16... Ne4
{[%clk 0:00:54.2]} 17. Qxg7+ {[%clk 0:02:31.6]} 17... Rxg7 {[%clk 0:00:52.9]}
18. Bxg7+ {[%clk 0:02:32.5]} 18... Kg8 {[%clk 0:00:53.3]} 19. Bf6+ {[%clk
0:02:32.8]} 19... Nxg5 {[%clk 0:00:50.8]} 20. Bxe7 {[%clk 0:02:33]} 20... Ne4
{[%clk 0:00:46.2]} 21. Bd3 {[%clk 0:02:31.7]} 21... Nf2 {[%clk 0:00:45.7]} 22.
Rf1 {[%clk 0:02:30.4]} 22... Nxd3+ {[%clk 0:00:45.5]} 23. cxd3 {[%clk
0:02:31.3]} 23... Re8 {[%clk 0:00:45.8]} 24. Bf6 {[%clk 0:02:28.4]} 24... Rxe3
{[%clk 0:00:45.9]} 25. Rf3 {[%clk 0:02:28.4]} 25... Re2 {[%clk 0:00:36.5]} 26.
Rg3+ {[%clk 0:02:28]} 26... Kf8 {[%clk 0:00:36.5]} 27. a4 {[%clk 0:02:23]} 27...
a6 {[%clk 0:00:27.6]} 28. Kd1 {[%clk 0:02:20.4]} 28... Rf2 {[%clk 0:00:24]} 29.
Bg5 {[%clk 0:02:14.3]} 29... b5 {[%clk 0:00:19.6]} 30. axb5 {[%clk 0:02:13.6]}
30... axb5 {[%clk 0:00:20.5]} 31. Re3 {[%clk 0:02:11.2]} 31... h5 {[%clk
0:00:13.5]} 32. Re2 {[%clk 0:02:06.9]} 32... Rf1+ {[%clk 0:00:13]} 33. Kd2
{[%clk 0:02:07.1]} 33... Rb1 {[%clk 0:00:12.9]} 34. Kc2 {[%clk 0:02:06.4]} 34...
Rh1 {[%clk 0:00:11.6]} 35. h4 {[%clk 0:02:06.3]} 35... Rf1 {[%clk 0:00:11]} 36.
Kd2 {[%clk 0:02:04.5]} 36... Kg7 {[%clk 0:00:10.5]} 37. b4 {[%clk 0:02:00.4]}
37... Rb1 {[%clk 0:00:08.4]} 38. Re7 {[%clk 0:01:59]} 38... Rxb4 {[%clk
0:00:06.7]} 39. Rxc7 {[%clk 0:01:58.3]} 39... Rb2+ {[%clk 0:00:07.3]} 40. Ke3
{[%clk 0:01:57.7]} 40... Rxg2 {[%clk 0:00:07]} 41. Rd7 {[%clk 0:01:57.2]} 41...
Rb2 {[%clk 0:00:03]} 42. Rxd6 {[%clk 0:01:56]} 42... Rb1 {[%clk 0:00:02.4]} 43.
Rb6 {[%clk 0:01:49.6]} 43... b4 {[%clk 0:00:02.5]} 44. Kd2 {[%clk 0:01:49.4]}
44... b3 {[%clk 0:00:02.6]} 45. Kc3 {[%clk 0:01:48.3]} 45... Rc1+ {[%clk
0:00:02.9]} 46. Kb2 {[%clk 0:01:46]} 46... Rc2+ {[%clk 0:00:03.1]} 47. Kxb3
{[%clk 0:01:45.2]} 47... Rd2 {[%clk 0:00:03.3]} 48. Kc3 {[%clk 0:01:45]} 48...
Rd1 {[%clk 0:00:03.5]} 49. d4 {[%clk 0:01:44.7]} 49... Rf1 {[%clk 0:00:02]} 50.
d5 {[%clk 0:01:43.9]} 50... Rd1 {[%clk 0:00:02.1]} 51. Kc4 {[%clk 0:01:43.8]}
51... Rc1+ {[%clk 0:00:01.9]} 52. Kd4 {[%clk 0:01:43.8]} 52... Rd1+ {[%clk
0:00:02.1]} 53. Ke5 {[%clk 0:01:44]} 53... Re1+ {[%clk 0:00:02.2]} 54. Kd6
{[%clk 0:01:44.3]} 54... f6 {[%clk 0:00:02.4]} 55. Kd7 {[%clk 0:01:39.7]} 55...
fxg5 {[%clk 0:00:02.3]} 56. fxg5 {[%clk 0:01:40.6]} 56... Re4 {[%clk 0:00:02.1]}
57. d6 {[%clk 0:01:40]} 57... Rxh4 {[%clk 0:00:02.3]} 58. Kd8 {[%clk 0:01:36.1]}
58... Kg6 {[%clk 0:00:02.5]} 59. Rb5 {[%clk 0:01:34.6]} 59... Rd4 {[%clk
0:00:02]} 60. d7 {[%clk 0:01:34.9]} 60... h4 {[%clk 0:00:02.5]} 61. Ke7 {[%clk
0:01:34.6]} 61... h3 {[%clk 0:00:02.4]} 62. d8=Q {[%clk 0:01:33]} 62... Rxd8
{[%clk 0:00:02.4]} 63. Kxd8 {[%clk 0:01:33.9]} 63... h2 {[%clk 0:00:02.1]} 64.
Rb1 {[%clk 0:01:32.2]} 64... Kxg5 {[%clk 0:00:02.5]} 65. Rh1 {[%clk 0:01:32.8]}
65... Kg4 {[%clk 0:00:01.9]} 66. Rxh2 {[%clk 0:01:33.7]} 1-0

[Event "Late-Titled-Tuesday-Blitz-May-14-2024"]
[Site "Chess.com"]
[Date "2024.05.14"]
[Round "11"]
[White "Hamisandwich"]
[Black "maximnovik"]
[Result "1-0"]
[WhiteElo "2754"]
[BlackElo "2591"]
[TimeControl "180+1"]
[EndTime "16:03:48 PDT"]
[Termination "Hamisandwich won by resignation"]

1. c3 {[%clk 0:02:57.9]} 1... e5 {[%clk 0:02:52.5]} 2. d4 {[%clk 0:02:55.8]}
2... Nc6 {[%clk 0:02:50.6]} 3. d5 {[%clk 0:02:50.4]} 3... Nce7 {[%clk
0:02:50.9]} 4. e4 {[%clk 0:02:48.3]} 4... Ng6 {[%clk 0:02:47.8]} 5. Be3 {[%clk
0:02:48.5]} 5... Nf6 {[%clk 0:02:43.5]} 6. f3 {[%clk 0:02:41.5]} 6... Nh5 {[%clk
0:02:41]} 7. Ne2 {[%clk 0:02:38]} 7... Be7 {[%clk 0:02:39.1]} 8. Qd2 {[%clk
0:02:36.7]} 8... O-O {[%clk 0:02:33.5]} 9. c4 {[%clk 0:02:33.6]} 9... d6 {[%clk
0:02:24.2]} 10. Nbc3 {[%clk 0:02:33.4]} 10... Nhf4 {[%clk 0:02:19]} 11. Ng3
{[%clk 0:02:25.6]} 11... Nh4 {[%clk 0:02:13.8]} 12. O-O-O {[%clk 0:02:20.8]}
12... f5 {[%clk 0:02:12.2]} 13. exf5 {[%clk 0:01:57.2]} 13... Nxf5 {[%clk
0:02:06.1]} 14. Nxf5 {[%clk 0:01:56]} 14... Bxf5 {[%clk 0:02:05.9]} 15. g3
{[%clk 0:01:55.5]} 15... Ng6 {[%clk 0:02:00.8]} 16. Be2 {[%clk 0:01:50.2]} 16...
c6 {[%clk 0:01:53.6]} 17. h4 {[%clk 0:01:46.9]} 17... Bf6 {[%clk 0:01:52.6]} 18.
dxc6 {[%clk 0:01:35.9]} 18... bxc6 {[%clk 0:01:51.6]} 19. Qxd6 {[%clk
0:01:34.8]} 19... Qc8 {[%clk 0:01:43]} 20. h5 {[%clk 0:01:23.7]} 20... Rd8
{[%clk 0:01:13.3]} 21. Qa3 {[%clk 0:01:07.7]} 21... Nf8 {[%clk 0:01:07]} 22. g4
{[%clk 0:01:05.5]} 22... Ne6 {[%clk 0:00:56.1]} 23. Rxd8+ {[%clk 0:00:57.5]}
23... Qxd8 {[%clk 0:00:54.1]} 24. gxf5 {[%clk 0:00:55.2]} 24... Nd4 {[%clk
0:00:52.1]} 25. h6 {[%clk 0:00:50.5]} 25... Nxf5 {[%clk 0:00:50.5]} 26. Bd2
{[%clk 0:00:45.9]} 26... Bg5 {[%clk 0:00:45.5]} 27. Ne4 {[%clk 0:00:42]} 27...
Bxd2+ {[%clk 0:00:38.3]} 28. Nxd2 {[%clk 0:00:42.9]} 28... Nxh6 {[%clk
0:00:33.7]} 29. Qd3 {[%clk 0:00:34.8]} 29... Qf6 {[%clk 0:00:31.9]} 30. Qe4
{[%clk 0:00:35.1]} 30... Nf5 {[%clk 0:00:30.3]} 31. Bd3 {[%clk 0:00:29.8]} 31...
g6 {[%clk 0:00:30.4]} 32. Re1 {[%clk 0:00:30.4]} 32... Rd8 {[%clk 0:00:28.8]}
33. Bc2 {[%clk 0:00:24.9]} 33... Qg5 {[%clk 0:00:28.8]} 34. Qe2 {[%clk
0:00:18.7]} 34... Rd4 {[%clk 0:00:18.2]} 35. Bxf5 {[%clk 0:00:18.9]} 35... gxf5
{[%clk 0:00:18]} 36. Qe3 {[%clk 0:00:17.4]} 36... Qg2 {[%clk 0:00:12.9]} 37. Rg1
{[%clk 0:00:16.4]} 1-0

[Event "Late-Titled-Tuesday-Blitz-May-14-2024"]
[Site "Chess.com"]
[Date "2024.05.14"]
[Round "11"]
[White "TigrVShlyape"]
[Black "Kildepiotr"]
[Result "1-0"]
[WhiteElo "2938"]
[BlackElo "2746"]
[TimeControl "180+1"]
[EndTime "16:03:55 PDT"]
[Termination "TigrVShlyape won by resignation"]

1. e4 {[%clk 0:03:00.9]} 1... e6 {[%clk 0:02:58.8]} 2. d4 {[%clk 0:03:00.5]}
2... d5 {[%clk 0:02:58.2]} 3. Nc3 {[%clk 0:03:00.9]} 3... Bb4 {[%clk 0:02:57.4]}
4. e5 {[%clk 0:03:00.1]} 4... b6 {[%clk 0:02:55.7]} 5. Qg4 {[%clk 0:02:58.3]}
5... Bf8 {[%clk 0:02:55.4]} 6. Nf3 {[%clk 0:02:52.2]} 6... Ne7 {[%clk
0:02:53.8]} 7. Bd3 {[%clk 0:02:51.5]} 7... Ba6 {[%clk 0:02:52.8]} 8. O-O {[%clk
0:02:50.6]} 8... Bxd3 {[%clk 0:02:52]} 9. cxd3 {[%clk 0:02:51]} 9... Nf5 {[%clk
0:02:50.6]} 10. Ne2 {[%clk 0:02:50.5]} 10... c5 {[%clk 0:02:47.9]} 11. dxc5
{[%clk 0:02:49]} 11... bxc5 {[%clk 0:02:47.8]} 12. Ng3 {[%clk 0:02:47.4]} 12...
g6 {[%clk 0:02:40.3]} 13. Bg5 {[%clk 0:02:46.2]} 13... Be7 {[%clk 0:02:38.9]}
14. Rfc1 {[%clk 0:02:42.4]} 14... Nd7 {[%clk 0:02:36.2]} 15. Nxf5 {[%clk
0:02:34.5]} 15... gxf5 {[%clk 0:02:35.3]} 16. Qh5 {[%clk 0:02:30.1]} 16... h6
{[%clk 0:02:31.9]} 17. Bxe7 {[%clk 0:02:28.1]} 17... Qxe7 {[%clk 0:02:31.8]} 18.
d4 {[%clk 0:02:26.1]} 18... Rc8 {[%clk 0:02:28.6]} 19. Rc3 {[%clk 0:02:22.7]}
19... c4 {[%clk 0:02:26.2]} 20. b3 {[%clk 0:02:21.1]} 20... Nb6 {[%clk
0:02:26.1]} 21. Rac1 {[%clk 0:02:20.6]} 21... Kd7 {[%clk 0:02:24]} 22. g3 {[%clk
0:02:08.1]} 22... cxb3 {[%clk 0:02:20.6]} 23. axb3 {[%clk 0:02:07.4]} 23... Rxc3
{[%clk 0:02:12.1]} 24. Rxc3 {[%clk 0:02:07]} 24... Na8 {[%clk 0:01:58.8]} 25.
Rc5 {[%clk 0:02:05.6]} 25... Nc7 {[%clk 0:01:58.5]} 26. Kg2 {[%clk 0:02:02.1]}
26... Kc8 {[%clk 0:01:54.2]} 27. Ne1 {[%clk 0:01:56.4]} 27... Kb7 {[%clk
0:01:50.9]} 28. Nd3 {[%clk 0:01:55]} 28... Na6 {[%clk 0:01:45.6]} 29. Rb5+
{[%clk 0:01:51.4]} 29... Ka8 {[%clk 0:01:45.6]} 30. Ra5 {[%clk 0:01:49.8]} 30...
Qb7 {[%clk 0:01:40.7]} 31. Ra1 {[%clk 0:01:25.8]} 31... Rc8 {[%clk 0:01:34.2]}
32. Qxh6 {[%clk 0:01:20.5]} 32... Qxb3 {[%clk 0:01:32.9]} 33. Qe3 {[%clk
0:01:10.4]} 33... Nb4 {[%clk 0:01:13.6]} 34. Nxb4 {[%clk 0:01:09.2]} 34... Qxb4
{[%clk 0:01:14.5]} 35. h4 {[%clk 0:01:04.9]} 35... a5 {[%clk 0:01:10.6]} 36. Qa3
{[%clk 0:01:04]} 36... Qxa3 {[%clk 0:01:05.1]} 37. Rxa3 {[%clk 0:01:04.1]} 37...
Rc4 {[%clk 0:01:05.4]} 38. Rxa5+ {[%clk 0:01:04.3]} 38... Kb7 {[%clk 0:01:05.8]}
39. h5 {[%clk 0:01:04.6]} 39... Rxd4 {[%clk 0:01:02.8]} 40. h6 {[%clk
0:01:02.3]} 40... Rc4 {[%clk 0:01:03.1]} 41. Kf3 {[%clk 0:00:56.3]} 41... Rc8
{[%clk 0:01:02.1]} 42. Ra4 {[%clk 0:00:51.9]} 42... Rh8 {[%clk 0:00:56.8]} 43.
Rh4 {[%clk 0:00:51.9]} 43... Kc6 {[%clk 0:00:56.3]} 44. Kf4 {[%clk 0:00:51.6]}
44... Kd7 {[%clk 0:00:48.3]} 45. Kg5 {[%clk 0:00:51.1]} 45... Ke7 {[%clk
0:00:48.7]} 46. h7 {[%clk 0:00:51.4]} 46... f6+ {[%clk 0:00:38.7]} 47. exf6+
{[%clk 0:00:43.9]} 47... Kf7 {[%clk 0:00:38.9]} 48. f4 {[%clk 0:00:37.4]} 48...
d4 {[%clk 0:00:36.9]} 49. Rh1 {[%clk 0:00:36.4]} 49... d3 {[%clk 0:00:36.1]} 50.
Rh2 {[%clk 0:00:36.7]} 50... e5 {[%clk 0:00:21.2]} 51. fxe5 {[%clk 0:00:35.4]}
51... f4 {[%clk 0:00:20.7]} 52. Kxf4 {[%clk 0:00:34.2]} 52... Ke6 {[%clk
0:00:20.2]} 53. g4 {[%clk 0:00:34]} 1-0

[Event "Late-Titled-Tuesday-Blitz-May-14-2024"]
[Site "Chess.com"]
[Date "2024.05.14"]
[Round "11"]
[White "vpsetter"]
[Black "volcanoexplorer"]
[Result "1-0"]
[WhiteElo "2582"]
[BlackElo "2707"]
[TimeControl "180+1"]
[EndTime "16:03:55 PDT"]
[Termination "vpsetter won by checkmate"]

1. Nf3 {[%clk 0:02:59.2]} 1... Nf6 {[%clk 0:03:00.3]} 2. c4 {[%clk 0:02:59.3]}
2... e6 {[%clk 0:03:00.6]} 3. Nc3 {[%clk 0:02:59.6]} 3... d5 {[%clk 0:03:01.3]}
4. e3 {[%clk 0:02:59.5]} 4... b6 {[%clk 0:03:00.6]} 5. cxd5 {[%clk 0:02:58.3]}
5... exd5 {[%clk 0:03:00.7]} 6. b3 {[%clk 0:02:56.3]} 6... Bb7 {[%clk
0:02:59.8]} 7. Bb2 {[%clk 0:02:56.5]} 7... Be7 {[%clk 0:02:55.8]} 8. Be2 {[%clk
0:02:52.9]} 8... O-O {[%clk 0:02:56.4]} 9. O-O {[%clk 0:02:53.2]} 9... Re8
{[%clk 0:02:57.1]} 10. Rc1 {[%clk 0:02:51.9]} 10... a6 {[%clk 0:02:57]} 11. Re1
{[%clk 0:02:43.7]} 11... Nbd7 {[%clk 0:02:52]} 12. Bf1 {[%clk 0:02:36.1]} 12...
Nc5 {[%clk 0:02:49]} 13. d3 {[%clk 0:02:26.6]} 13... a5 {[%clk 0:02:42.9]} 14.
Qc2 {[%clk 0:02:18.1]} 14... Bf8 {[%clk 0:02:39.9]} 15. d4 {[%clk 0:01:18.3]}
15... Nce4 {[%clk 0:02:33.7]} 16. Nxe4 {[%clk 0:01:16.6]} 16... dxe4 {[%clk
0:02:34.6]} 17. Qxc7 {[%clk 0:01:01.9]} 17... exf3 {[%clk 0:02:17.4]} 18. Qxb7
{[%clk 0:00:59.5]} 18... Bb4 {[%clk 0:02:06.9]} 19. Red1 {[%clk 0:00:59.3]}
19... Ne4 {[%clk 0:02:03.4]} 20. gxf3 {[%clk 0:00:24.3]} 20... Qg5+ {[%clk
0:01:54.5]} 21. Bg2 {[%clk 0:00:24]} 21... Nxf2 {[%clk 0:01:41.8]} 22. f4 {[%clk
0:00:24.3]} 22... Qh4 {[%clk 0:01:38.9]} 23. Rf1 {[%clk 0:00:16.4]} 23... Ng4
{[%clk 0:01:38.6]} 24. h3 {[%clk 0:00:09.2]} 24... Nxe3 {[%clk 0:01:38.8]} 25.
Rf2 {[%clk 0:00:03.7]} 25... Rab8 {[%clk 0:01:21.9]} 26. Qf3 {[%clk 0:00:03.9]}
26... Rbd8 {[%clk 0:01:10.3]} 27. f5 {[%clk 0:00:03.6]} 27... Bd6 {[%clk
0:01:01.4]} 28. d5 {[%clk 0:00:03.7]} 28... Bg3 {[%clk 0:01:01]} 29. Re2 {[%clk
0:00:03.8]} 29... Bf4 {[%clk 0:01:00.7]} 30. Rc4 {[%clk 0:00:03.8]} 30... Nxg2
{[%clk 0:00:58.8]} 31. Rxe8+ {[%clk 0:00:03.8]} 31... Rxe8 {[%clk 0:00:59.5]}
32. Kxg2 {[%clk 0:00:04.5]} 32... Qg5+ {[%clk 0:00:59.1]} 33. Qg4 {[%clk
0:00:04.8]} 33... Re2+ {[%clk 0:00:18.9]} 34. Kf3 {[%clk 0:00:05.1]} 34... Re3+
{[%clk 0:00:18.8]} 35. Kf2 {[%clk 0:00:05.2]} 35... Bg3+ {[%clk 0:00:19.2]} 36.
Kg2 {[%clk 0:00:04.7]} 36... Qd8 {[%clk 0:00:17.8]} 37. Qxg7# {[%clk 0:00:03.2]}
1-0

[Event "Late-Titled-Tuesday-Blitz-May-14-2024"]
[Site "Chess.com"]
[Date "2024.05.14"]
[Round "11"]
[White "Rud_Makarian"]
[Black "Aygehovit1992"]
[Result "1-0"]
[WhiteElo "2955"]
[BlackElo "2836"]
[TimeControl "180+1"]
[EndTime "16:03:59 PDT"]
[Termination "Rud_Makarian won on time"]

1. d4 {[%clk 0:03:00.9]} 1... Nf6 {[%clk 0:02:59.9]} 2. c4 {[%clk 0:03:01.2]}
2... g6 {[%clk 0:03:00.5]} 3. Nc3 {[%clk 0:03:00.9]} 3... Bg7 {[%clk 0:03:01.1]}
4. e4 {[%clk 0:03:01.5]} 4... d6 {[%clk 0:03:01.8]} 5. Be2 {[%clk 0:03:02]} 5...
O-O {[%clk 0:03:02]} 6. Be3 {[%clk 0:03:02.7]} 6... Na6 {[%clk 0:03:01.6]} 7.
Nf3 {[%clk 0:03:02.6]} 7... e5 {[%clk 0:03:01.3]} 8. O-O {[%clk 0:03:03.4]} 8...
Qe7 {[%clk 0:03:01.3]} 9. Nd5 {[%clk 0:03:01.7]} 9... Qd8 {[%clk 0:03:01.5]} 10.
Nc3 {[%clk 0:03:01.7]} 10... Qe7 {[%clk 0:03:01.7]} 11. Nd5 {[%clk 0:02:57]}
11... Qd8 {[%clk 0:03:01.4]} 12. dxe5 {[%clk 0:02:57.5]} 12... dxe5 {[%clk
0:03:01.2]} 13. Qc2 {[%clk 0:02:56.2]} 13... c6 {[%clk 0:02:59.9]} 14. Nxf6+
{[%clk 0:02:55.9]} 14... Qxf6 {[%clk 0:02:59.9]} 15. Rfd1 {[%clk 0:02:53.8]}
15... Bg4 {[%clk 0:02:58.6]} 16. h3 {[%clk 0:02:50.7]} 16... Bxf3 {[%clk
0:02:58.6]} 17. Bxf3 {[%clk 0:02:51.6]} 17... Rfd8 {[%clk 0:02:52.6]} 18. a3
{[%clk 0:02:49.2]} 18... h5 {[%clk 0:02:50.6]} 19. b4 {[%clk 0:02:46.8]} 19...
Nc7 {[%clk 0:02:45.9]} 20. Rxd8+ {[%clk 0:02:46.6]} 20... Qxd8 {[%clk
0:02:46.8]} 21. Rd1 {[%clk 0:02:46.2]} 21... Qe8 {[%clk 0:02:43.6]} 22. h4
{[%clk 0:02:40.8]} 22... Ne6 {[%clk 0:02:43.5]} 23. g3 {[%clk 0:02:39.8]} 23...
Nd4 {[%clk 0:02:42.2]} 24. Bxd4 {[%clk 0:02:40.3]} 24... exd4 {[%clk 0:02:43.1]}
25. Bg2 {[%clk 0:02:40.4]} 25... a5 {[%clk 0:02:40.8]} 26. Qb3 {[%clk
0:02:34.4]} 26... axb4 {[%clk 0:02:39.7]} 27. axb4 {[%clk 0:02:35.3]} 27... Qd7
{[%clk 0:02:18.7]} 28. Kh2 {[%clk 0:02:32.7]} 28... b6 {[%clk 0:02:05.6]} 29. f4
{[%clk 0:02:21.2]} 29... c5 {[%clk 0:02:05.9]} 30. e5 {[%clk 0:02:21.2]} 30...
Ra7 {[%clk 0:02:06.3]} 31. bxc5 {[%clk 0:02:18.6]} 31... bxc5 {[%clk 0:02:06.3]}
32. Rb1 {[%clk 0:02:01.8]} 32... Bf8 {[%clk 0:01:57.3]} 33. Bd5 {[%clk
0:01:43.2]} 33... Kg7 {[%clk 0:01:49.2]} 34. Qc2 {[%clk 0:01:34.5]} 34... Qg4
{[%clk 0:01:43.4]} 35. Rb3 {[%clk 0:01:17.2]} 35... Be7 {[%clk 0:01:40]} 36. Qg2
{[%clk 0:01:04.2]} 36... Bxh4 {[%clk 0:01:28]} 37. Bf3 {[%clk 0:01:02]} 37...
Bxg3+ {[%clk 0:01:28.1]} 38. Qxg3 {[%clk 0:01:02.3]} 38... Ra2+ {[%clk
0:01:28.3]} 39. Bg2 {[%clk 0:01:01.9]} 39... Qe2 {[%clk 0:01:01.1]} 40. f5
{[%clk 0:00:55.3]} 40... Kh6 {[%clk 0:00:09]} 41. e6 {[%clk 0:00:45.5]} 41... g5
{[%clk 0:00:02.2]} 42. exf7 {[%clk 0:00:44.6]} 42... Qe7 {[%clk 0:00:02.7]} 43.
Rb7 {[%clk 0:00:35.1]} 43... Qf6 {[%clk 0:00:01.4]} 44. Qb8 {[%clk 0:00:33.5]}
44... g4 {[%clk 0:00:01.4]} 45. f8=Q+ {[%clk 0:00:32.7]} 1-0

[Event "Late-Titled-Tuesday-Blitz-May-14-2024"]
[Site "Chess.com"]
[Date "2024.05.14"]
[Round "11"]
[White "cristianserban1"]
[Black "BardArtem"]
[Result "0-1"]
[WhiteElo "2507"]
[BlackElo "2722"]
[TimeControl "180+1"]
[EndTime "16:03:59 PDT"]
[Termination "BardArtem won on time"]

1. d4 {[%clk 0:03:00.9]} 1... a5 {[%clk 0:03:00.9]} 2. e3 {[%clk 0:03:00.8]}
2... Ra6 {[%clk 0:03:01.8]} 3. e4 {[%clk 0:03:01.7]} 3... Re6 {[%clk 0:03:00]}
4. Nc3 {[%clk 0:02:59.2]} 4... d5 {[%clk 0:02:53.7]} 5. e5 {[%clk 0:02:59.6]}
5... Nc6 {[%clk 0:02:43.5]} 6. f4 {[%clk 0:02:58]} 6... Nh6 {[%clk 0:02:42.8]}
7. Nf3 {[%clk 0:02:54.1]} 7... Rg6 {[%clk 0:02:38.6]} 8. Be3 {[%clk 0:02:49.1]}
8... Bf5 {[%clk 0:02:32.5]} 9. h3 {[%clk 0:02:45.3]} 9... e6 {[%clk 0:02:33.1]}
10. Bf2 {[%clk 0:02:35.3]} 10... Bb4 {[%clk 0:02:31.9]} 11. Nh4 {[%clk
0:02:24.3]} 11... Be4 {[%clk 0:02:26.9]} 12. Nxg6 {[%clk 0:02:23.5]} 12... hxg6
{[%clk 0:02:27.8]} 13. Qd2 {[%clk 0:02:06.7]} 13... Nf5 {[%clk 0:02:25.7]} 14.
O-O-O {[%clk 0:01:58.4]} 14... Bxc3 {[%clk 0:02:24.3]} 15. Qxc3 {[%clk
0:01:57.1]} 15... Nb4 {[%clk 0:02:24.9]} 16. Qa3 {[%clk 0:01:35.8]} 16... Bxc2
{[%clk 0:01:44]} 17. Rd2 {[%clk 0:01:35.6]} 17... Be4 {[%clk 0:01:44.6]} 18.
Qxa5 {[%clk 0:01:33.8]} 18... Nc6 {[%clk 0:01:45.2]} 19. Qc3 {[%clk 0:01:29.5]}
19... O-O {[%clk 0:01:44]} 20. h4 {[%clk 0:01:24.2]} 20... Qa8 {[%clk
0:01:43.4]} 21. a3 {[%clk 0:01:20.7]} 21... Qa4 {[%clk 0:01:37.8]} 22. Rh3
{[%clk 0:01:14.7]} 22... Na5 {[%clk 0:01:32.7]} 23. g4 {[%clk 0:01:09.7]} 23...
Nh6 {[%clk 0:01:27.1]} 24. Be2 {[%clk 0:01:06.3]} 24... Nc4 {[%clk 0:01:18.8]}
25. Bxc4 {[%clk 0:01:05.7]} 25... Qxc4 {[%clk 0:01:17.5]} 26. Qxc4 {[%clk
0:01:05.7]} 26... dxc4 {[%clk 0:01:18.4]} 27. b3 {[%clk 0:00:54.4]} 27... cxb3
{[%clk 0:01:14.1]} 28. Rxb3 {[%clk 0:00:51.9]} 28... Nxg4 {[%clk 0:01:14.4]} 29.
Bg1 {[%clk 0:00:51.6]} 29... Bd5 {[%clk 0:01:11.6]} 30. Rc3 {[%clk 0:00:51.9]}
30... c6 {[%clk 0:01:11.2]} 31. Rb2 {[%clk 0:00:52]} 31... b5 {[%clk 0:01:11.4]}
32. Rb4 {[%clk 0:00:42.2]} 32... Nh6 {[%clk 0:01:11.2]} 33. a4 {[%clk
0:00:39.6]} 33... bxa4 {[%clk 0:01:11.2]} 34. Rxa4 {[%clk 0:00:39.8]} 34... Nf5
{[%clk 0:01:12.1]} 35. Bf2 {[%clk 0:00:39.8]} 35... f6 {[%clk 0:01:12.1]} 36.
Rca3 {[%clk 0:00:38.9]} 36... fxe5 {[%clk 0:01:12.4]} 37. dxe5 {[%clk 0:00:39]}
37... Kh7 {[%clk 0:01:12]} 38. Ra8 {[%clk 0:00:36.8]} 38... Rf7 {[%clk
0:01:10.6]} 39. R3a7 {[%clk 0:00:37.2]} 39... Rxa7 {[%clk 0:01:11]} 40. Rxa7
{[%clk 0:00:38.1]} 40... Kh6 {[%clk 0:01:10.9]} 41. Kd2 {[%clk 0:00:27.9]} 41...
Kh5 {[%clk 0:01:10.6]} 42. Ra1 {[%clk 0:00:28.5]} 42... Kg4 {[%clk 0:01:10.8]}
43. Rg1+ {[%clk 0:00:26.9]} 43... Kf3 {[%clk 0:01:10.2]} 44. Be1 {[%clk
0:00:21.1]} 44... Kxf4 {[%clk 0:01:06.4]} 45. Rxg6 {[%clk 0:00:21.1]} 45... Kxe5
{[%clk 0:01:06.7]} 46. h5 {[%clk 0:00:20.5]} 46... Kf4 {[%clk 0:01:06.5]} 47.
Bf2 {[%clk 0:00:14.2]} 47... e5 {[%clk 0:01:03.4]} 48. Bb6 {[%clk 0:00:10.6]}
48... e4 {[%clk 0:01:02.5]} 49. Bc7+ {[%clk 0:00:10.8]} 49... Kf3 {[%clk
0:01:02.8]} 50. Rg5 {[%clk 0:00:07.1]} 50... e3+ {[%clk 0:01:03.2]} 51. Ke1
{[%clk 0:00:03.9]} 51... Nd4 {[%clk 0:01:03.4]} 52. Rg3+ {[%clk 0:00:02.7]}
52... Ke4 {[%clk 0:01:04.1]} 53. Rxg7 {[%clk 0:00:02.3]} 53... Kd3 {[%clk
0:00:59.9]} 54. Ba5 {[%clk 0:00:00.4]} 54... Bf3 {[%clk 0:00:56.5]} 55. h6
{[%clk 0:00:00.2]} 55... Be2 {[%clk 0:00:55.8]} 0-1